Workbook

Sheet Disclaimer

Sheet Instructions
A1: Power Budget Instructions
A40: Press the Start button to begin using the Power Budget Tool

Sheet Summary
A1: Power Budget | B1: =CONCATENATE(INDEX(Chassis!$I$3:$I$7,'Intel Chassis'!$C3)," / ",INDEX(Serverboard!A$2:A$6,'Serverboard Config'!$B3) ) -> (Select Chassis) / (Select Serverboard)
A2: Chassis/ Power Supply / Cooling: | C2: =INDEX(Chassis!A$3:A$10,'Intel Chassis'!$C3) -> Select a Chassis and PSU | K2: Config limitation table on HDD and add-in card for 550W PSU
A3: Serverboard: | C3: =INDEX(Serverboard!A$2:A$6,'Serverboard Config'!$B3) -> (Select Serverboard)
A4: System Totals | B4: +3.3V (amps) | C4: +5V (amps) | D4: +12V (amps) | E4: -12V (amps) | F4: 5VSB (amps) | G4: Total System Watts | M4: 550W PSU
A5: Processors | B5: =SUM('Serverboard Config'!D4) -> 0 | C5: =SUM('Serverboard Config'!E4) -> 0 | D5: =SUM('Serverboard Config'!F4) -> 0 | E5: =SUM('Serverboard Config'!G4) -> 0 | F5: =SUM('Serverboard Config'!H4) -> 0 | G5: =SUM('Serverboard Config'!I4) -> 0 | K5: PCI/GPU | L5: 6x15W PCI/1x75w PCI
A6: PCIe Cards | B6: =SUM('Serverboard Config'!D8:D14) -> 0 | C6: =SUM('Serverboard Config'!E8:E14) -> 0 | D6: =SUM('Serverboard Config'!F8:F14) -> 0 | E6: =SUM('Serverboard Config'!G8:G14) -> 0 | F6: =SUM('Serverboard Config'!H8:H14) -> 0 | G6: =SUM('Serverboard Config'!I8:I14) -> 0 | L6: 4x15W PCI
A7: Hard Drives | B7: =SUM('Intel Chassis'!E5:E5) -> 0 | C7: =SUM('Intel Chassis'!F5:F5) -> 0 | D7: =SUM('Intel Chassis'!G5:G5) -> 0 | E7: =SUM('Intel Chassis'!H5:H5) -> 0 | F7: 0 | G7: =SUM('Intel Chassis'!J5:J5) -> 0 | L7: 3x15W PCI
A8: Serverboard & Memory: | B8: =SUM('Serverboard Config'!D6:D7) -> 0 | C8: =SUM('Serverboard Config'!E6:E7) -> 0 | D8: =SUM('Serverboard Config'!F6:F7) -> 0 | E8: =SUM('Serverboard Config'!G6:G7) -> 0 | F8: =SUM('Serverboard Config'!H6:H7) -> 0 | G8: =SUM('Serverboard Config'!I6:I7) -> 0 | L8: 2x15W PCI
A9: Chassis & Peripherals: | B9: =SUM('Intel Chassis'!E3:E11)-SUM('Intel Chassis'!E5:E5) -> 0 | C9: =SUM('Intel Chassis'!F3:F11)-SUM('Intel Chassis'!F5:F5) -> 0 | D9: =SUM('Intel Chassis'!G3:G8)-SUM('Intel Chassis'!G5:G5) -> 0 | E9: =SUM('Intel Chassis'!H3:H11)-SUM('Intel Chassis'!H5:H5) -> 0 | F9: =SUM('Intel Chassis'!I3:I11)-SUM('Intel Chassis'!I5:I5) -> 0 | G9: ='Intel Chassis'!J14-'Intel Chassis'!J5 -> 0 | L9: 1x15W PCI
A10: System Totals: | B10: =SUM(B5:B9) -> 0 | C10: 0 | D10: 0 | E10: 0 | F10: 0 | G10: 0 | K10: HDD | L10: 24x2.5" HDD/12x3.5" HDD
A11: Power Supply Limits: | B11: =INDEX(Chassis!B$3:B$7,'Intel Chassis'!$C3) -> 0 | C11: =INDEX(Chassis!C$3:C$7,'Intel Chassis'!$C3) -> 0 | D11: =INDEX(Chassis!D$3:D$7,'Intel Chassis'!$C3) -> 0 | E11: =INDEX(Chassis!E$3:E$7,'Intel Chassis'!$C3) -> 0 | F11: =INDEX(Chassis!F$3:F$7,'Intel Chassis'!$C3) -> 0 | G11: =INDEX(Chassis!G$3:G$7,'Intel Chassis'!$C3) -> 0 | L11: 16x2.5" HDD/8x3.5" HDD
A12: Margins to Limit: | B12: =B11-B10 -> 0 | C12: 0 | D12: 0 | E12: 0 | F12: 0 | G12: 0 | H12: =IF(OR(OR(OR(B12<0,C12<0),OR(D12<0,E12<0)),G12<0),"<-- Limits Exceeded!","") ->  | L12: 14x2.5" HDD/7x3.5" HDD
A13: Other Power Supply | B13: =PS2_3.3-SB3.3-Sys3.3 ->  | C13: =PS2_5-_sb5-_Sys5 ->  | D13: =PS2_12-_sb12-_Sys12 ->  | E13: =PS2_12neg-sb12Neg-Sys12Neg ->  | G13: =PS2CombLim - Sys3.3*3.3 - _Sys5*5 - SB3.3*3.3 - _sb5*5 - _Sys12*12 - _sb12*12 ->  | L13: 12x2.5" HDD/6x3.5" HDD
A14: Negative margins show configuration exceeds a specified limit. | L14: 10x2.5" HDD/5x3.5" HDD
L15: 8x2.5" HDD/4x3.5" HDD
L16: 6x2.5" HDD/3x3.5" HDD
F17: 110V | G17: 220V | L17: 4x2.5" HDD/2x3.5" HDD
E18: Estimated Worst Case Inlet Power: | F18: =PowerTotal/ (INDEX(Chassis!$J$3:$J$7,'Intel Chassis'!$C3)+0.001) -> 0 | G18: =PowerTotal / (INDEX(Chassis!$K$3:$K$7,'Intel Chassis'!$C3)+0.001) -> 0 | H18: (Watts) | L18: 2x2.5" HDD/1x3.5" HDD
E19: Estimated Worst Case Inlet Current: | F19: =F18/110 -> 0 | G19: =G18/220 -> 0 | H19: (Amps)
E20: Estimated Worst Case Thermal Dissipation: | F20: =F18*3.41 -> 0 | G20: =G18*3.41 -> 0 | H20: (BTU/Hr) | K20: Note: | L20: This config limitation table is suitable for all MBs which support 550w PSU.
L21: The table figure out recommended config base on conservative data, which concerned almost of HDDs types and different status.
L22: System have risk to support 8x3.5" HDD + 30w add-in card, risk core: 4 (Medium to Low)
A23: =Revisions!A1 -> Version 1.0 - 12/22/2017 | L23: System have risk to support 8x3.5" HDD + 45w add-in card, risk code: 2 (Medium to High)

Sheet Intel Chassis
A1: Power Budget | C1: =CONCATENATE(INDEX(Chassis!$I$3:$I$7,C3), " System Configuration") -> (Select Chassis) System Configuration
A2: System Feature | C2: Description | D2: Qty | E2: +3.3V (amps) | F2: +5V (amps) | G2: +12V(amps) | H2: -12V (amps) | I2: 5V stby (amps) | J2: Power (watts)
A3: Chassis&PSU: | C3: 1 | G3: =INDEX(Chassis!$H$3:$H$10,C3) -> 0 | J3: =E3*3.3+F3*5+(G3+H3)*12+I3*5 -> 0 | K3: Includes System Fans
A4: HSBP (Backplane): | C4: 1 | D4: 0 | E4: =INDEX(HSBP!B2:B9,$C4) *$D4 -> 0 | F4: =INDEX(HSBP!C2:C9,$C4) *$D4 -> 0 | G4: =INDEX(HSBP!D2:D9,$C4) *$D4 -> 0 | H4: =INDEX(HSBP!E2:E9,$C4) *$D4 -> 0 | I4: =INDEX(HSBP!F2:F9,$C4) *$D4 -> 0 | J4: =E4*3.3+F4*5+(G4+H4)*12+I4*5 -> 0 | K4: =INDEX(L8:L11,$C4) -> Max 8 SATA HDD/SSD support
A5: 1st HDD/SSD Type: | C5: 1 | D5: 0 | E5: =INDEX(HardDrive!B2:B12,$C5) *$D5 -> 0 | F5: =INDEX(HardDrive!C2:C12,$C5) *$D5 -> 0 | G5: =INDEX(HardDrive!D2:D12,$C5) *$D5 -> 0 | J5: =E5*3.3+F5*5+(G5+H5)*12+I5*5 -> 0 | K5: Attention Not to Exceed Maximum drive support qty
A6: 2nd HDD/SSD Type: | C6: 1 | D6: 0 | E6: =INDEX(HardDrive!B2:B12,$C6) *$D6 -> 0 | F6: =INDEX(HardDrive!C2:C12,$C6) *$D6 -> 0 | G6: =INDEX(HardDrive!D2:D12,$C6) *$D6 -> 0 | J6: =E6*3.3+F6*5+(G6+H6)*12+I6*5 -> 0
A7: 3rd HDD/SSD Type | C7: 1 | D7: 0 | E7: =INDEX(HardDrive!B2:B12,$C7) *$D7 -> 0 | F7: =INDEX(HardDrive!C2:C12,$C7) *$D7 -> 0 | G7: =INDEX(HardDrive!D2:D12,$C7) *$D7 -> 0 | J7: =E7*3.3+F7*5+(G7+H7)*12+I7*5 -> 0
A8: USB: | C8: 1 | D8: 0 | E8: =INDEX(HardDrive!B17:B21,$C8) *$D8 -> 0 | F8: =INDEX(HardDrive!C17:C21,$C8) *$D8 -> 0 | J8: =E8*3.3+F8*5+(G8+H8)*12+I8*5 -> 0 | L8: Max 8 SATA HDD/SSD support
A9: External Bay 1: | C9: 1 | D9: 0 | E9: =INDEX(Peripherals!B$3:B$7,$C9) *$D9 -> 0 | F9: =INDEX(Peripherals!C$3:C$7,$C9) *$D9 -> 0 | G9: =INDEX(Peripherals!D$3:D$7,$C9) *$D9 -> 0 | I9: =INDEX(Peripherals!E$3:E$7,$C9) *$D9 -> 0 | J9: 0 | L9: Max 2pcs HSBP support, Max 4pcs 2.5" SAS/SATA HDD/SSD support per one HSBP
A10: External Bay 2: | C10: 1 | D10: 0 | E10: =INDEX(Peripherals!B$3:B$7,$C10) *$D10 -> 0 | F10: =INDEX(Peripherals!C$3:C$7,$C10) *$D10 -> 0 | G10: =INDEX(Peripherals!D$3:D$7,$C10) *$D10 -> 0 | I10: =INDEX(Peripherals!E$3:E$7,$C10) *$D10 -> 0 | J10: 0 | L10: Max 4pcs PCIe SSD + 4pcs 2.5" SAS/SATA HDD/SSD support
A11: Other device 1: | C11: 1 | D11: 0 | E11: =INDEX(Peripherals!B$3:B$7,$C11) *$D11 -> 0 | F11: =INDEX(Peripherals!C$3:C$7,$C11) *$D11 -> 0 | G11: =INDEX(Peripherals!D$3:D$7,$C11) *$D11 -> 0 | I11: =INDEX(Peripherals!E$3:E$7,$C11) *$D11 -> 0 | J11: 0 | K11: Max 1 RAID Expander Module | L11: Max 2pcs HSBP support, Max 4pcs 2.5/3.5" SAS/SATA HDD/SSD support per one HSBP
A12: Other device 2: | C12: 1 | D12: 0 | E12: =INDEX(Peripherals!B$3:B$7,$C12) *$D12 -> 0 | F12: =INDEX(Peripherals!C$3:C$7,$C12) *$D12 -> 0 | G12: =INDEX(Peripherals!D$3:D$7,$C12) *$D12 -> 0 | I12: =INDEX(Peripherals!E$3:E$7,$C12) *$D12 -> 0 | J12: =E12*3.3+F12*5+(G12+H12)*12+I12*5 -> 0 | K12: Max 2 M.2 drives
C14: Subtotal System (A): | E14: =SUM(E3:E11) -> 0 | F14: 0 | G14: 0 | H14: 0 | I14: 0 | J14: 0
C15: Total System usage (A): | E15: =Summary!B10 -> 0 | F15: =Summary!C10 -> 0 | G15: =Summary!D10 -> 0 | H15: =Summary!E10 -> 0 | I15: =Summary!F10 -> 0 | J15: =Summary!G10 -> 0
C16: Power Supply Limits (A): | E16: =Summary!B11 -> 0 | F16: =Summary!C11 -> 0 | G16: =Summary!D11 -> 0 | H16: =Summary!E11 -> 0 | I16: =Summary!F11 -> 0 | J16: =Summary!G11 -> 0
C17: Margins compared to Limits: | E17: =Summary!B12 -> 0 | F17: =Summary!C12 -> 0 | G17: =Summary!D12 -> 0 | H17: =Summary!E12 -> 0 | I17: =Summary!F12 -> 0 | J17: =Summary!G12 -> 0 | K17: =IF(OR(OR(M102<0,F17<0),OR(G17<0,J17<0)),"<-- Limits Exceeded!","<--System Margins") -> <--System Margins
A18: System Margins so far: | E18: 3.3V | F18: 5V | G18: 12V | H18: 12V | I18: 12V | J18: W

Sheet Serverboard Config
A1: Power Budget | B1: =CONCATENATE(INDEX(Serverboard!A$2:A$6,$B3)," Serverboard Configuration") -> (Select Serverboard) Serverboard Configuration | K1: VRM Efficiency
A2: Serverboard Feature | B2: Description | D2: +3.3V (amps) | E2: +5V (amps) | F2: +12V (amps) | G2: -12V (amps) | H2: 5V stby (amps) | I2: Power (watts) | K2: 0.84
A3: Serverboard: | B3: 1 | D3: =INDEX(Serverboard!B$2:B$6,$B3) -> 0 | E3: =INDEX(Serverboard!C$2:C$6,$B3) -> 0 | F3: =INDEX(Serverboard!D$2:D$6,$B3) -> 0 | G3: =INDEX(Serverboard!E$2:E$6,$B3) -> 0 | H3: =INDEX(Serverboard!F$2:F$6,$B3) -> 0 | I3: =INDEX(Serverboard!G$2:G$6,$B3) -> 0
A4: Processors: | B4: 1 | C4: 1 | F4: =IF(C5=1,INDEX(Processors!B$2:B$56,$B4)/12/VRMefficiency,(C4-1)*INDEX(Processors!B$2:B$56,$B4)*0.85/12/VRMefficiency) -> 0 | I4: =F4*12+E4*5 -> 0 | J4: *This line includes correction factors.
A7: Memory: | B7: 1 | C7: 1 | F7: =INDEX(Memory!D$2:D$16,$B7)*INDEX(Memory!A$29:A$45,$C7)*0.9*0.78 -> 0 | I7: =D7*3.3+E7*5+F7*12+G7*12+H7*5 -> 0 | J7: *This line includes correction factors (utilization & VR eff).
A9: PCI Slot 1 | B9: 1 | D9: =INDEX(PCI!B$2:B$15,$B9) -> 0 | E9: =INDEX(PCI!C$2:C$15,$B9) -> 0 | F9: =INDEX(PCI!D$2:D$15,$B9) -> 0 | G9: =INDEX(PCI!E$2:E$15,$B9) -> 0 | H9: =INDEX(PCI!F$2:F$15,$B9) -> 0 | I9: =D9*3.3+E9*5+F9*12+G9*12+H9*5 -> 0
A10: PCI Slot 2 | B10: 1 | D10: =INDEX(PCI!B$2:B$15,$B10) -> 0 | E10: =INDEX(PCI!C$2:C$15,$B10) -> 0 | F10: =INDEX(PCI!D$2:D$15,$B10) -> 0 | G10: =INDEX(PCI!E$2:E$15,$B10) -> 0 | H10: =INDEX(PCI!F$2:F$15,$B10) -> 0 | I10: 0
A11: PCI Slot 3 | B11: 1 | D11: =INDEX(PCI!B$2:B$15,$B11) -> 0 | E11: =INDEX(PCI!C$2:C$15,$B11) -> 0 | F11: =INDEX(PCI!D$2:D$15,$B11) -> 0 | G11: =INDEX(PCI!E$2:E$15,$B11) -> 0 | H11: =INDEX(PCI!F$2:F$15,$B11) -> 0 | I11: 0
A12: PCI Slot 4 | B12: 1 | D12: =INDEX(PCI!B$2:B$15,$B12) -> 0 | E12: =INDEX(PCI!C$2:C$15,$B12) -> 0 | F12: =INDEX(PCI!D$2:D$15,$B12) -> 0 | G12: =INDEX(PCI!E$2:E$15,$B12) -> 0 | H12: =INDEX(PCI!F$2:F$15,$B12) -> 0 | I12: 0
A13: PCI Slot 5 | B13: 1 | D13: =INDEX(PCI!B$2:B$15,$B13) -> 0 | E13: =INDEX(PCI!C$2:C$15,$B13) -> 0 | F13: =INDEX(PCI!D$2:D$15,$B13) -> 0 | G13: =INDEX(PCI!E$2:E$15,$B13) -> 0 | H13: =INDEX(PCI!F$2:F$15,$B13) -> 0 | I13: 0
A14: PCI Slot 6 | B14: 1 | D14: =INDEX(PCI!B$2:B$15,$B14) -> 0 | E14: =INDEX(PCI!C$2:C$15,$B14) -> 0 | F14: =INDEX(PCI!D$2:D$15,$B14) -> 0 | G14: =INDEX(PCI!E$2:E$15,$B14) -> 0 | H14: =INDEX(PCI!F$2:F$15,$B14) -> 0 | I14: 0
B15: SubTotals (A): | D15: =SUM(D4:D14) -> 0 | E15: =SUM(E4:E14) -> 0 | F15: =SUM(F4:F14) -> 0 | G15: =SUM(G4:G14) -> 0 | H15: =SUM(H4:H14) -> 0
B16: SubTotal Serverboard Power (W): | D16: =(D15)*3.3 -> 0 | E16: =(E15)*5 -> 0 | F16: =(F15)*12 -> 0 | G16: =(G15)*12 -> 0 | H16: =(H15)*5 -> 0 | I16: =SUM(D16:H16) -> 0
B17: Total System usage (A): | D17: =Summary!B10 -> 0 | E17: =Summary!C10 -> 0 | F17: =Summary!D10 -> 0 | G17: =Summary!E10 -> 0 | H17: =Summary!F10 -> 0 | I17: =Summary!G10 -> 0
B18: Power Supply Limits (A): | D18: =Summary!B11 -> 0 | E18: =Summary!C11 -> 0 | F18: =Summary!D11 -> 0 | G18: =Summary!E11 -> 0 | H18: =Summary!F11 -> 0 | I18: =Summary!G11 -> 0
C19: Margin compared to Limits: | D19: =Summary!B12 -> 0 | E19: =Summary!C12 -> 0 | F19: =Summary!D12 -> 0 | G19: =Summary!E12 -> 0 | H19: =Summary!F12 -> 0 | I19: =Summary!G12 -> 0 | J19: =IF(OR(OR(OR(D19<0,E19<0),OR(F19<0,G19<0)),A19<0),"<-- Limits Exceeded!","<--System Margins") -> <--System Margins

Sheet Serverboard
A1: Serverboard | B1: 3.3V | C1: 5V | D1: 12V | E1: -12V | F1: 5VSB | G1: W
A2: (Select Serverboard) | G2: =B2*3.3+C2*5+D2*12+E2*12 + F2*5 -> 0
A3: Intel® Server Board S2600STB | B3: 2.8 | C3: 1.6 | D3: 4.8 | E3: 0 | F3: 0 | G3: 74.84
A4: Intel® Server Board S2600STQ | B4: 2.8 | C4: 1.6 | D4: 5.3 | E4: 0 | F4: 0 | G4: =B4*3.3+C4*5+D4*12+E4*12 + F4*5 -> 80.84
A5: User Definable | G5: 0 | H5: <-- Define Custom Numbers Here
A6: User Definable | G6: 0 | H6: <-- Define Custom Numbers Here

Sheet Chassis
A1: Chassis | B1: Power supply limits | H1: Fans | I1: Product Name | J1: PS Efficiency | K1: PS Efficiency
A2: Selection | B2: 3V | C2: 5V | D2: 12V | E2: -12V | F2: 5VSB | G2: Watts | J2: 110V | K2: 220V
A3: Select a Chassis and PSU | I3: (Select Chassis)
A4: P4304XXMUXX with 750W PSU | B4: 25 | C4: 25 | D4: =750/12 -> 62.5 | E4: 0.5 | F4: 4.28 | G4: 750 | H4: 8.65 | I4: P4304XXMUXX with 750W PSU | J4: 0.8 | K4: 0.8
A5: P4304XXMUXX with 1600W PSU | B5: 25 | C5: 25 | D5: 133.33 | E5: 0.5 | F5: 4.28 | G5: 1600 | H5: 8.65 | I5: P4304XXMUXX with 1600W PSU | J5: 0.8 | K5: 0.8
A6: P4304XXMFEN2 with 550W PSU | B6: 18 | C6: 15 | D6: 66 | E6: 0.5 | F6: 3 | G6: 550 | H6: 4.9 | I6: P4304XXMFEN2 with 550W PSU | J6: 0.88 | K6: 0.88
L7: <-- Define Custom Numbers Here
L8: <-- Define Custom Numbers Here
L9: <-- Define Custom Numbers Here
L10: <-- Define Custom Numbers Here

Sheet Processors
A1: Processor Types | B1: TDP (W) | C1: Source | E1: VRM#1 | F1: VRM#2
A2: (Select a Processor) | E2: 5V VRM | F2: 12V VRM
A3: Intel® Xeon® Platinum 8168 Processor (205W) | B3: 205 | E3: 12V VRM | F3: None
A4: Intel® Xeon® Platinum 8180 Processor (205W) | B4: 205 | E4: None
A5: Intel® Xeon® Gold 6154 Processor (200W) | B5: 200
A6: Intel® Xeon® Platinum 8170 Processor (165W) | B6: 165
A7: Intel® Xeon® Platinum 8176 Processor (165W) | B7: 165
A8: Intel® Xeon® Gold 6146 Processor (165W) | B8: 165
A9: Intel® Xeon® Gold 6150 Processor (165W) | B9: 165
A10: Intel® Xeon® Platinum 8158 Processor (150W) | B10: 150
A11: Intel® Xeon® Platinum 8160 Processor (150W) | B11: 150
A12: Intel® Xeon® Platinum 8160T Processor (150W) | B12: 150
A13: Intel® Xeon® Platinum 8164 Processor (150W) | B13: 150
A14: Intel® Xeon® Gold 6136 Processor (150W) | B14: 150
A15: Intel® Xeon® Gold 6142 Processor (150W) | B15: 150
A16: Intel® Xeon® Gold 6144 Processor (150W) | B16: 150
A17: Intel® Xeon® Gold 6148 Processor (150W) | B17: 150
A18: Intel® Xeon® Gold 6132 Processor (140W) | B18: 140
A19: Intel® Xeon® Gold 6140 Processor (140W) | B19: 140
A20: Intel® Xeon® Gold 6152 Processor (140W) | B20: 140
A21: Intel® Xeon® Gold 6134 Processor (130W) | B21: 130
A22: Intel® Xeon® Platinum 8153 Processor (125W) | B22: 125
A23: Intel® Xeon® Gold 6126 Processor (125W) | B23: 125
A24: Intel® Xeon® Gold 6126T Processor (125W) | B24: 125
A25: Intel® Xeon® Gold 6130 Processor (125W) | B25: 125
A26: Intel® Xeon® Gold 6130T Processor (125W) | B26: 125
A27: Intel® Xeon® Gold 6138 Processor (125W) | B27: 125
A28: Intel® Xeon® Gold 6138T Processor (125W) | B28: 125
A29: Intel® Xeon® Gold 6128 Processor (115W) | B29: 115
A30: Intel® Xeon® Platinum 8156 Processor (105W) | B30: 105
A31: Intel® Xeon® Gold 5118 Processor (105W) | B31: 105
A32: Intel® Xeon® Gold 5120 Processor (105W) | B32: 105
A33: Intel® Xeon® Gold 5120T Processor (105W) | B33: 105
A34: Intel® Xeon® Gold 5122 Processor (105W) | B34: 105
A35: Intel® Xeon® Gold 5115 Processor (85W) | B35: 85
A36: Intel® Xeon® Gold 5119T Processor (85W) | B36: 85
A37: Intel® Xeon® Silver 4108 Processor (85W) | B37: 85
A38: Intel® Xeon® Silver 4110 Processor (85W) | B38: 85
A39: Intel® Xeon® Silver 4112 Processor (85W) | B39: 85
A40: Intel® Xeon® Silver 4114 Processor (85W) | B40: 85
A41: Intel® Xeon® Silver 4114T Processor (85W) | B41: 85
A42: Intel® Xeon® Silver 4116 Processor (85W) | B42: 85
A43: Intel® Xeon® Silver 4116T Processor (85W) | B43: 85
A44: Intel® Xeon® Bronze 3104 Processor (85W) | B44: 85
A45: Intel® Xeon® Bronze 3106 Processor (85W) | B45: 85
A46: Intel® Xeon® Silver 4109 Processor (70W) | B46: 70
A47: User Definable | D47: <-- Define Custom Numbers Here
A48: User Definable | D48: <-- Define Custom Numbers Here
A49: User Definable | D49: <-- Define Custom Numbers Here
A50: User Definable | D50: <-- Define Custom Numbers Here
A51: User Definable | D51: <-- Define Custom Numbers Here
A52: User Definable | D52: <-- Define Custom Numbers Here
A53: User Definable | D53: <-- Define Custom Numbers Here
A54: User Definable | D54: <-- Define Custom Numbers Here
A55: User Definable | D55: <-- Define Custom Numbers Here
D56: <-- Define Custom Numbers Here
A59: Processor Quantities (used for tool operation)
A60: 0 | B60: 0
A61: 1 | B61: 1
A62: 2 | B62: 2

Sheet Memory
A1: Memory | B1: +3.3V | C1: +5V | D1: +12V | E1: -12V | F1: Watts
A2: (Select Memory) | D2: 0 | F2: =B2*3.3+C2*5+D2*12 -> 0
A3: 4GB DDR4 RDIMM (4Gb, SRx8) | D3: 0.25 | F3: =12*D3 -> 3
A4: 8GB DDR4 RDIMM (4Gb, SRx4) | D4: 0.4 | F4: =12*D4 -> 4.8
A5: 8GB DDR4 RDIMM (8Gb, SRx8) | D5: 0.25 | F5: 3
A6: 8GB DDR4 RDIMM (4Gb, DRx8) | D6: 0.3 | F6: 3.6
A7: 16GB DDR4 RDIMM (8Gb, SRx4) | D7: 0.3333333333 | F7: 4
A8: 16GB DDR4 RDIMM (4Gb, DRx4) | D8: 0.525 | F8: 6.3
A9: 16GB DDR4 RDIMM (8Gb, DRx8) | D9: 0.3 | F9: 3.6
A10: 32GB DDR4 RDIMM (8Gb, DRx4) | D10: 0.525 | F10: 6.3
A11: 32GB DDR4 LRDIMM (4Gb, QRx4) | D11: 0.8833333333 | F11: 10.6
A12: 64GB DDR4 LRDIMM (8Gb, QRx4) | D12: 0.9166666667 | F12: 11
A13: User Definable | F13: 0 | G13: <-- Define Custom Numbers Here
A14: User Definable | F14: 0 | G14: <-- Define Custom Numbers Here
A15: User Definable | F15: 0 | G15: <-- Define Custom Numbers Here
A16: User Definable | F16: 0 | G16: <-- Define Custom Numbers Here
A20: Note:
A21: DIMM power will vary depending on the # of DIMMs & the actual strees/bandwidth used.
A28: Memory Quantities (used for tool operation)
A29: 0
A30: 1
A31: 2
A32: 3
A33: 4
A34: 5
A35: 6
A36: 7
A37: 8
A38: 9
A39: 10
A40: 11
A41: 12
A42: 13
A43: 14
A44: 15
A45: 16

Sheet PCI
A1: PCI Add in Cards | B1: +3.3V (A) | C1: +5V (A) | D1: +12V3 (A) | E1: -12V (A) | F1: 5vsb (A) | G1: W
A2: Slot Empty | B2: 0 | C2: 0 | D2: 0 | E2: 0 | F2: 0 | G2: =E2*(-12)+D2*12+C2*5+B2*3.3 -> 0
A3: PCI (5V) Typical | C3: 2 | G3: =F3*5+E3*(12)+D3*12+C3*5+B3*3.3 -> 10
A4: PCI (3V) Typical | B4: 3 | G4: 9.9
A5: PCIe (3.3V / 12V) Typical | B5: 2 | D5: 0.25 | G5: 9.6
A6: PCIe (3.3V / 12V) Medium | B6: 2 | D6: 0.65 | G6: 14.4
A7: PCIe (3.3V / 12V) High | D7: 1.7 | G7: 20.4
A8: PCIe GPGPU 300W | B8: 3 | D8: 24.18 | G8: =F8*5+E8*(12)+D8*12+C8*5+B8*3.3 -> 300.06
A9: PCIe GPGPU 225W | B9: 3 | D9: 17.95 | G9: 225.3
A10: PCIe GPU 150W | B10: 3 | D10: 11.68 | G10: 150.06
A11: General GPU 75W | B11: 3 | D11: 5.43 | G11: 75.06
A12: PCI User Definable | G12: 0 | H12: <-- Define Custom Card Here
A13: PCI User Definable | G13: 0 | H13: <-- Define Custom Card Here
A14: PCI User Definable | G14: =F14*5+E14*(12)+D14*12+C14*5+B14*3.3 -> 0 | H14: <-- Define Custom Card Here
A15: PCI User Definable | G15: =F15*5+E15*(12)+D15*12+C15*5+B15*3.3 -> 0 | H15: <-- Define Custom Card Here

Sheet HSBP
A1: Backplane | B1: +3.3V (A) | C1: +5V (A) | D1: +12 (A) | E1: -12V (A) | F1: 5vsb (A) | G1: W
A2: Select Backplane | B2: 0 | C2: 0 | D2: 0 | E2: 0 | F2: 0 | G2: =E2*(-12)+D2*12+C2*5+B2*3.3 -> 0
A3: 8x2.5" HSBP AUP8X25S3DPDK | B3: 0 | C3: 0 | D3: 0.12 | E3: 0 | F3: 0 | G3: =F3*5+E3*(12)+D3*12+C3*5+B3*3.3 -> 1.44
A4: 8x2.5" HSBP Combo FXX8X25S3PHBP | B4: 0 | C4: 0 | D4: 0.14 | E4: 0 | F4: 0 | G4: 1.68
A5: 4x3.5" HSBP FUP4X35S3HSBP | B5: 0 | C5: 0.34 | D5: 0.1 | E5: 0 | F5: 0 | G5: 2.9
A6: User Definable | G6: 0 | H6: <-- Define Custom Card Here
A7: User Definable | G7: 0 | H7: <-- Define Custom Card Here
A8: User Definable | G8: 0 | H8: <-- Define Custom Card Here
A9: User Definable | G9: 0 | H9: <-- Define Custom Card Here
A14: 4U 8x3.5 HSBP
A15: Function | B15: Sch Page | C15: P3V3, Max | D15: 5V, Max | E15: 12V, Max | F15: Comments: | H15: 5V, Max | I15: 12V, Max
A16: 3.5" SATA/SAS HDD | F16: No derating, doesn't include spinup power | H16: 6.4 | I16: 8.8
A17: 3.3V LR (from 5V) | D17: 0.243 | F17: MIC69153, up to 0.8A load current, 66% efficiency
A18: Reset Timer | C18: 0.02 | F18: ADM809
A19: FRU EEPROM | C19: 0.005 | F19: AT24C64
A20: Temp Sensor | C20: 0.01 | F20: TMP75
A21: SPI Flash | C21: 0.03 | F21: SST25LF080A
A22: HSBP Microcontroller | C22: 0.055 | F22: PSoC
A23: LED drivers (Act/Fault) | C23: 0.1 | F23: 74LVC07, Assumes 10mA per LED
A24: Misc Pullups | C24: 0.038
A25: Total Current, A | C25: =SUM(C16:C24) -> 0.258 | D25: =SUM(D16:D24) -> 0.243 | E25: =SUM(E16:E24) -> 0
A26: Total Power, W | C26: =C25*3.3 -> 0.8514 | D26: =D25*5 -> 1.215 | E26: =E25*12 -> 0 | F26: =(C26/0.85+D26/0.85+E26)/12 -> 0.2025882353
A29: 4U 8x2.5 HSBP
A30: Function | B30: Sch Page | C30: P3V3, Max | D30: 5V, Max | E30: 12V, Max | F30: Comments: | H30: 5V, Max | I30: 12V, Max
A31: 2.5" SATA/SAS HDD | F31: No derating, doesn't include spinup power | H31: 6.4 | I31: 3.2
A32: 5V Switcher (from 12V) | F32: SC417, ~90% estimated efficiency | I32: 3.076
A33: 3.3V LR (from 5V) | D33: 0.243 | F33: MIC69135, up to 0.8A load current, 66% efficiency
A34: Reset Timer | C34: 0.02 | F34: ADM809
A35: FRU EEPROM | C35: 0.005 | F35: AT24C64
A36: Temp Sensor | C36: 0.01 | F36: TMP75
A37: SPI Flash | C37: 0.03 | F37: SST25LF080A
A38: HSBP Microcontroller | C38: 0.055 | F38: PSoC
A39: LED drivers (Act/Fault) | C39: 0.1 | F39: 74LVC07, Assumes 10mA per LED
A40: Misc Pullups | C40: 0.038
A41: Total Current, A | C41: =SUM(C31:C40) -> 0.258 | D41: =SUM(D31:D40) -> 0.243 | E41: =SUM(E31:E40) -> 0
A42: Total Power, W | C42: =C41*3.3 -> 0.8514 | D42: =D41*5 -> 1.215 | E42: =E41*12 -> 0 | F42: =(C42/0.85+D42/0.85+E42)/12 -> 0.2025882353
A45: 4U 4x3.5 HSBP
A46: Function | B46: Sch Page | C46: P3V3, Max | D46: 5V, Max | E46: 12V, Max | F46: Comments: | H46: 5V, Max | I46: 12V, Max
A47: 3.5" SATA/SAS HDD | F47: No derating, doesn't include spinup power | H47: 3.2 | I47: 4.4
A48: 3.3V LR (from 5V) | D48: 0.243 | F48: MIC69153, up to 0.8A load current, 66% efficiency
A49: Reset Timer | C49: 0.02 | F49: ADM809
A50: FRU EEPROM | C50: 0.005 | F50: AT24C64
A51: Temp Sensor | C51: 0.01 | F51: TMP75
A52: SPI Flash | C52: 0.03 | F52: SST25LF080A
A53: HSBP Microcontroller | C53: 0.055 | F53: PSoC
A54: LED drivers (Act/Fault) | C54: 0.1 | F54: 74LVC07, Assumes 10mA per LED
A55: Misc Pullups | C55: 0.038
A56: Total Current, A | C56: =SUM(C47:C55) -> 0.258 | D56: =SUM(D47:D55) -> 0.243 | E56: =SUM(E47:E55) -> 0
A57: Total Power, W | C57: =C56*3.3 -> 0.8514 | D57: =D56*5 -> 1.215 | E57: =E56*12 -> 0 | F57: =(C57/0.85+D57/0.85+E57)/12 -> 0.2025882353

Sheet HardDrive
A1: Hard Drive & SSD | B1: Amps of +3.3V | C1: Amps of +5V | D1: Amps of +12V3 | E1: W
A2: Select Drives, Only SATA HDD/SSD supported if no HSBP | E2: =C2*5+D2*12 -> 0
A3: 3.5" SAS Typical Power (15W) | C3: 0.8 | D3: 0.92 | E3: 15.04
A4: 2.5" SAS Typical Power (9W) | C4: 0.81 | D4: 0.41 | E4: 8.97
A5: 3.5" SATA Typical Power (12W) | C5: 0.5 | D5: 0.8 | E5: 12.1
A6: 2.5" SATA Typical Power (5W) | C6: 1 | D6: 0 | E6: 5
A7: 2.5" PCIe SSD U.2 (25 W) | D7: 2.08 | E7: =C7*5+D7*12 -> 24.96
A8: 2.5" SATA SSD (8W) | C8: 0.96 | D8: 0.25 | E8: =C8*5+D8*12 -> 7.8
A9: 2.5" SATA SSD (12W) | C9: 0.94 | D9: 0.675 | E9: =C9*5+D9*12 -> 12.8
A10: User Definable | E10: =C10*5+D10*12 -> 0 | F10: <-- Define Custom Device Here
A11: User Definable | E11: 0 | F11: <-- Define Custom Device Here
A12: User Definable | E12: 0 | F12: <-- Define Custom Device Here
A16: USB Device | B16: Amps of +3.3V | C16: Amps of +5V | D16: Amps of +12V3 | E16: W
A17: Select USB drives | E17: =C17*5+D17*12 -> 0
A18: USB3.0 typical drive 2W | C18: 0.338 | D18: 0 | E18: 1.69
A19: USB2.0 Typical drive | C19: 0.2 | D19: 0 | E19: 1
A20: User Definable | E20: 0 | F20: <-- Define Custom Device Here
A21: User Definable | E21: 0 | F21: <-- Define Custom Device Here

Sheet Peripherals
A1: Misc Peripherals | B1: Amps of +3.3V | C1: Amps of +5V | D1: Amps of +12V | E1: Amps of 5vsb | F1: Watts
A2: ODD Bay Devices:
A3: Empty
A4: CDROM | C4: 0.4 | D4: 0.7 | F4: =B4*3.3+C4*5+D4*12+E4*5 -> 10.4
A5: Tape Drive | C5: 0.77 | D5: 0.4 | F5: =B5*3.3+C5*5+D5*12+E5*5 -> 8.65
A6: User Definable | F6: =B6*3.3+C6*5+D6*12+E6*5 -> 0 | G6: <-- Define Custom Peripherals Here
A7: User Definable | F7: =B7*3.3+C7*5+D7*12+E7*5 -> 0 | G7: <-- Define Custom Peripherals Here
A13: Misc Peripherals | B13: Amps of +3.3V | C13: Amps of +5V | D13: Amps of +12V | E13: Amps of 5vsb | F13: Watts
A14: Empty
A15: M.2 | B15: 1.5 | F15: =B15*3.3+C15*5+D15*12+E15*5 -> 4.95
A16: RAID Expander Module | D16: 1.34 | F16: =B16*3.3+C16*5+D16*12+E16*5 -> 16.08
A17: User Definable | F17: =B17*3.3+C17*5+D17*12+E17*5 -> 0 | G17: <-- Define Custom Peripherals Here
A18: User Definable | F18: =B18*3.3+C18*5+D18*12+E18*5 -> 0 | G18: <-- Define Custom Peripherals Here

Sheet Macro1

Sheet Revisions
A1: Version 1.0 - 12/22/2017 | B1: <=== Linked to Summary Tab.
A3: Date | B3: Rev | C3: Notes | D3: Init
A4: 2014-08-15 | B4: 1 | C4: Initial Release | D4: LJ
A5: 2016-01-28 | B5: 1 | C5: Add CWP 2S and TS SKU | D5: LJ
A6: 2016-06-03 | B6: 1.1 | C6: Add BDW CPUs, etc | D6: Jessica
A7: 2017-12-22 | B7: 1 | C7: Initial release: STP adjustment, CPU, memory, HSBP update, SAS and RAID controllers added, MB specs | D7: eperezag
